Cogmind - Beta 10.2 @@@ ROGUE MODE // 2021.08.02 @ 21:21:04 Player: ILikeVoltron Result: Self-destructed Performance ------------- Evolutions (1) 500 Regions Visited (2) 400 Robots Destroyed (21) 105 Value Destroyed (575) 575 Prototype IDs (0) 0 Alien Tech Used (0) 0 Bonus (0) 0 TOTAL SCORE: 1580 Bonus ------- None Cogmind --------- Core Integrity 325/400 Matter 300/300 Energy 125/125 System Corruption 0% Temperature Cool (0) Movement Rolling (110) Ox1 Location -9/Materials Parts ------- > --- POWER (1) -------- Light Ion Engine > --- PROPULSION (3) --- Compact Wheel Cesium-ion Thruster Cesium-ion Thruster > --- UTILITY (3) ------ Small Storage Unit Small Storage Unit Reflective Plating > --- WEAPON (2) ------- EM Shotgun Katana > --- INVENTORY (8) ---- Ion Engine Armored Treads Aluminum Leg Wheel Improved Terrain Scanner Light Armor Plating Assault Rifle Light Assault Rifle Peak State ------------ > --- POWER ------------ Improved Ion Engine > --- PROPULSION ------- Cesium-ion Thruster Cesium-ion Thruster Cesium-ion Thruster > --- UTILITY ---------- Small Storage Unit Small Storage Unit Reflective Plating > --- WEAPON ----------- EM Shotgun Katana > --- INVENTORY -------- Ion Engine Armored Treads Aluminum Leg Wheel Compact Wheel Improved Terrain Scanner Assault Rifle Light Assault Rifle [Rating: 22] Favorites ----------- Power Improved Ion Engine Engine Improved Ion Engine Propulsion Armored Treads Treads Armored Treads Leg Aluminum Leg Wheel Compact Wheel Flight Unit Cesium-ion Thruster Utility Small Storage Unit Storage Small Storage Unit Protection Reflective Plating Weapon EM Pulse Gun Energy Gun EM Pulse Gun Ballistic Gun Light Assault Rifle Slashing Weapon Katana Build | -11 -10 -9 ------- Run | Scr Mat Mat Slots Evolved 2 | . . 2 Power . | . . . Propulsion 1 | . . 1 Utility 1 | . . 1 Weapon . | . . . Parts Attached 20 | . 4 16 Power 3 | . . 3 Engine 3 | . . 3 Core . | . . . Reactor . | . . . Propulsion 10 | . 2 8 Treads 3 | . . 3 Leg 3 | . 2 1 Wheel 1 | . . 1 Hover . | . . . Flight 3 | . . 3 Utility 3 | . 1 2 Device . | . . . Storage 2 | . 1 1 Processor . | . . . Hackware . | . . . Protection 1 | . . 1 Artifact . | . . . Weapon 4 | . 1 3 Energy Gun 2 | . 1 1 Energy Cannon . | . . . Ballistic Gun 1 | . . 1 Ballistic Cannon . | . . . Launcher . | . . . Special Weapon . | . . . Impact Weapon . | . . . Slashing Weapon 1 | . . 1 Piercing Weapon . | . . . Special Melee Weapon . | . . . Unidentified Prototypes . | . . . Parts Lost 4 | . 1 3 Power 1 | . 1 . Propulsion 1 | . . 1 Utility . | . . . Weapon 2 | . . 2 Highest Loss Streak 2 | . 1 2 Average Slot Usage (%) 91 | . 92 90 Engine 8 | . 11 6 Treads 12 | . . 18 Leg 11 | . 28 3 Flight 4 | . . 7 Storage 28 | . 24 30 Protection 1 | . . 2 Energy Gun 10 | . 15 7 Ballistic Gun 7 | . 11 5 Slashing Weapon 4 | . . 7 Naked Turns . | . . . Heaviest Build 28 | 12 20 28 Greatest Support 60 | 20 20 60 Greatest Overweight (x) 4 | . . 4 Average Overweight (x) . | . . . Largest Inventory Capacity 12 | 6 10 12 Average Capacity 10 | 6 8 11 Most Carried 12 | 6 10 12 Average Carried 9 | 6 7 11 Final Capacity 10 | 6 10 8 Final Carried 10 | 6 10 8 Class Distribution -------------------- 100% | Mutant Dominant Class ---------------- Mutant | -10/Materials Mutant | -9/Materials Resources | -11 -10 -9 ----------- Run | Scr Mat Mat Matter Collected 548 | 205 82 261 Remotely . | . . . Salvage Created 823 | 95 266 462 Parts 53 | 2 18 33 Haulers Intercepted . | . . . Recyclers Shooed 1 | . 1 . Parts Field Recycled . | . . . Retrieved Matter . | . . . Parts Self-Destructed . | . . . Prevented . | . . . Kills | -11 -10 -9 ------- Run | Scr Mat Mat Combat Hostiles Destroyed 19 | . 7 12 Guns 18 | . 6 12 AOE 1 | . 1 . Classes Destroyed 6 | 1 3 2 Worker 1 | . 1 . Recycler 1 | 1 . . Swarmer 7 | . 3 4 Grunt 7 | . 4 3 Duelist 1 | . . 1 Sentry 4 | . . 4 Best Kill Streak 5 | 1 5 4 Combat Bots Only 4 | . 4 4 Max Kills in Single Turn 2 | 1 2 1 Gunslinging . | . . . Exploded 1 | . 1 . Melee . | . . . Uniques/NPCs Destroyed . | . . . Combat | -11 -10 -9 -------- Run | Scr Mat Mat Damage Taken 1199 | . 350 849 Core 121 | . 46 75 Absorbed by Shields . | . . . Core Remaining (%) 90 | 100 81 . Volleys Fired 83 | 5 15 63 Largest 2 | 2 2 2 Hottest 80 | 60 60 80 Shots Fired 109 | 10 30 69 Gun 109 | 10 30 69 Cannon . | . . . Launcher . | . . . Special . | . . . Kinetic 65 | 5 15 45 Thermal . | . . . Explosive . | . . . Electromagnetic 44 | 5 15 24 Robot Hit Streak 16 | 4 6 16 Robot Miss Streak 5 | 2 3 5 Penetration Max . | . . . Secondary Targets 1 | . . 1 Max Gunslinging Chain 1 | . . 1 Shots Hit Robots 82 | 6 21 55 Core Hits 45 | 3 13 29 Critical Hits . | . . . Critical Kills . | . . . Critical Parts Destroyed . | . . . Melee Attacks . | . . . Impact . | . . . Slashing . | . . . Piercing . | . . . Sneak Attacks . | . . . Combat Hostiles . | . . . Follow-up Attacks . | . . . Damage Inflicted 1004 | 59 330 615 Guns 856 | 59 209 588 Cannons . | . . . Explosions 148 | . 121 27 Melee . | . . . Ramming . | . . . Kinetic 412 | 29 78 305 Thermal 105 | . 78 27 Explosive . | . . . Electromagnetic 487 | 30 174 283 Impact . | . . . Slashing . | . . . Piercing . | . . . Highest Corruption 2 | . 2 . Average Corruption 2 | . 2 . Corruption Purged . | . . . Effects 1 | . 1 . Heat Flow Errors 1 | . 1 . Overload Shots . | . . . Overflow Damage 9 | . . 9 Projectiles . | . . . Explosions 9 | . . 9 Melee . | . . . Knockbacks . | . . . Impact . | . . . Kinetic . | . . . Secondary . | . . . Self-Inflicted Damage 59 | . 59 . Shots 2 | . 2 . Rammed . | . . . Targets Rammed . | . . . Kicked . | . . . Crushed . | . . . Highest Temperature 115 | 20 115 49 Average Temperature 27 | 13 44 10 Received Heat Transfer 396 | . 93 303 Siege Activations . | . . . Robots Corrupted . | . . . Combat Hostiles . | . . . Parts Fried 1 | . . 1 Impact Corruptions . | . . . Robots Melted . | . . . Combat Hostiles . | . . . Parts Melted . | . . . Heat Transferred 100 | . 50 50 Parts Sabotaged . | . . . Parts Stolen . | . . . Parts Stripped . | . . . Power Chain Reactions 3 | . 2 1 Missiles Intercepted . | . . . Alert | -11 -10 -9 ------- Run | Scr Mat Mat Peak Influence 363 | 5 222 363 Initial 93 | . 3 93 Average 180 | 1 93 229 Maximum Alert Level 1 | . 1 1 Low Security (%) 52 | 100 80 38 Level 1 47 | . 19 62 Level 2 . | . . . Level 3 . | . . . Level 4 . | . . . Level 5 . | . . . High Security . | . . . Max Security . | . . . Squads Dispatched 1 | . . 1 Investigation 1 | . . 1 Extermination . | . . . Reinforcement . | . . . Assault . | . . . Garrison . | . . . Intercept . | . . . Construction Impeded . | . . . Haulers Reinforced . | . . . Stealth | -11 -10 -9 --------- Run | Scr Mat Mat Distress Signals 2 | . 1 1 Communications Jammed . | . . . Distress Signals . | . . . Times Spotted 27 | . 12 15 Peak Tracking Total 5 | . 5 4 Tactical Retreats 3 | . . 3 Traps | -11 -10 -9 ------- Run | Scr Mat Mat Traps Triggered . | . . . Indirectly . | . . . Trap Hack Attempts . | . . . Triggered . | . . . Disarmed . | . . . Reprogrammed . | . . . Reused . | . . . Traps Extracted . | . . . Installed . | . . . Triggered . | . . . Machines | -11 -10 -9 ---------- Run | Scr Mat Mat Machines Disabled 2 | . 2 . Max in Single Turn 1 | . 1 . Machines Sabotaged . | . . . Garrisons Compromised . | . . . Overloaded Fab Kills . | . . . Fab Network Shutdowns . | . . . Hacking | -11 -10 -9 --------- Run | Scr Mat Mat Machines Accessed 4 | . 1 3 Terminals 4 | . 1 3 Fabricators . | . . . Repair Stations . | . . . Recycling Units . | . . . Scanalyzers . | . . . Garrison Access . | . . . Total Hacks 13 | . 3 10 Successful 10 | . 3 7 Failed 3 | . . 3 Catastrophic 2 | . . 2 Database Lockouts . | . . . Manual 5 | . 1 4 Terminals 13 | . 3 10 Fabricators . | . . . Repair Stations . | . . . Recycling Units . | . . . Scanalyzers . | . . . Garrison Access . | . . . Terminal Hacks 6 | . 2 4 Branch Access Points 2 | . 1 1 Scanalyzer Index 1 | . 1 . Locate Traps 1 | . . 1 Zone Layout 2 | . . 2 Fabricator Hacks . | . . . Repair Station Hacks . | . . . Recycling Unit Hacks . | . . . Scanalyzer . | . . . Garrison Access Hacks . | . . . Unauthorized Hacks 4 | . 1 3 Terminals 4 | . 1 3 Botnet 4 | . 1 3 Fabricators . | . . . Repair Stations . | . . . Recycling Units . | . . . Scanalyzers . | . . . Garrison Access . | . . . Data Cores Recovered . | . . . Used . | . . . Hacking Detections 4 | . 1 3 Full Trace Events 1 | . . 1 Feedback Events . | . . . Feedback Blocked . | . . . Robot Schematics Acquired . | . . . Robots Built . | . . . Matter . | . . . Time . | . . . Total Robot Build Rating . | . . . Part Schematics Acquired . | . . . Parts Built . | . . . Matter . | . . . Time . | . . . Total Part Build Rating . | . . . Parts Repaired . | . . . Time . | . . . Parts Recycled . | . . . Recycled Matter . | . . . Retrieved Matter . | . . . Retrieved Components . | . . . Parts Scanalyzed . | . . . Part Schematics Acquired . | . . . Parts Damaged . | . . . Bothacking | -11 -10 -9 ------------ Run | Scr Mat Mat Used RIF Installer . | . . . Robots Hacked . | . . . Non-combat . | . . . Combat . | . . . Robot Hacks Applied . | . . . Relay Couplers Released . | . . . Robots Rewired . | . . . Allies Hacked . | . . . Hacks Repelled . | . . . Allies | -11 -10 -9 -------- Run | Scr Mat Mat Total Allies . | . . . Largest Group . | . . . Highest-Rated Group . | . . . Highest-Rated Ally . | . . . Total Orders . | . . . Ally Attacks . | . . . Total Damage . | . . . Kills . | . . . Allies Corrupted . | . . . Allies Melted . | . . . Intel | -11 -10 -9 ------- Run | Scr Mat Mat Robot Analysis Total . | . . . Derelict Logs Recovered . | . . . Drone Launches . | . . . Drone Recoveries . | . . . Exploration | -11 -10 -9 ------------- Run | Scr Mat Mat Turns Passed 759 | 17 242 500 Spaces Moved 400 | 3 161 236 Core . | . . . Treads 103 | . . 103 Legs 222 | 3 161 58 Wheels 16 | . . 16 Hover . | . . . Flight 59 | . . 59 Fastest Speed 34 | 120 120 34 Average Speed 123 | 120 120 125 Slowest Speed 360 | 120 120 360 Overloaded Moves . | . . . Propulsion Burnouts . | . . . Robots Hopped . | . . . Cave-ins Triggered . | . . . Exploration Rate (%) 21 | 2 41 22 Regions Visited 2 Branch Regions . Pre-discovered Areas . | . . . Known Exits Taken . | . . . Unknown Exits Taken 2 | 1 1 . Scrap Searched . | . . . Spaces Dug . | . . . Terrain Destroyed 17 | . 11 6 Melee . | . . . Projectile . | . . . AOE 17 | . 11 6 Terrain Rammed . | . . . Walls Destroyed . | . . . Machines Disabled . | . . . Actions | -11 -10 -9 --------- Run | Scr Mat Mat Total 567 | 7 181 379 Wait 49 | . . 49 Move 398 | 2 160 236 Hop . | . . . Pick Up 5 | . 1 4 Fast Attach 15 | . 2 13 Attach 2 | . . 2 Detach 2 | . 1 1 Swap 3 | . 2 1 Drop 10 | . . 10 Fire 83 | 5 15 63 Melee . | . . . Ram . | . . . Kick . | . . . Crush . | . . . Escape Stasis . | . . . Rewire . | . . . Trap . | . . . Miscellaneous . | . . . Route ------- -11/Scrapyard -10/Materials (discovered 2 exits: *Mat / Min) -9/Materials (discovered 1 exit: Min) History --------- Turn | Location | Event 15 | -11/Scrapyard | Discovered new exit (range 1) 18 | -11/Scrapyard | Entered Materials 75 | -10/Materials | Identified exit to Mines 220 | -10/Materials | Discovered new exit (range 13) 260 | -10/Materials | Entered another Materials area 260 | -9/Materials | Evolved 2 slots: Propulsion x1, Utility x1 317 | -9/Materials | Build established: Mutant 665 | -9/Materials | Identified exit to Mines 760 | -9/Materials | Self-destructed Last Messages --------------- Awaiting botnet instructions. 00670_ Connecting with Terminal... >>Trojan(Botnet) Trojan loaded successfully. Testing... Terminal linked with 2 systems. Awaiting botnet instructions. 00670_ ALERT: Suspicious activity at Terminal M005. Dispatching Investigation squad. 00688_ G-34 Mercenary misfires. 00690_ Chain reaction triggered in Ion Engine. 00690_ Destroyed Sml. Laser. 00703_ Acquired 40 matter. 00715_ Acquired Lgt. Ion Engine. 00723_ Y-45 Defender IFF system glitched. 00737_ Heat Sink fried. 00737_ Y-45 Defender destroyed. 00739_ Acquired 10 matter. 00740_ Dropped Cesium-ion Thruster. 00741_ Acquired 10 matter. 00742_ Acquired Lgt. Armor Plating. Map ----- +----------------------------------------------------+ | ??????????????????????????????????# """#= !!!!#? | | ??????????????????????????????????#[ # =!!!!#? | | ??????????????????????????????????# # = #? | | ??????????????????????????##############+# ## | | ????????????????????????? | | ????????????????????????? ! = | | ????????????????????????????######### % = | | ????????????????????????????????????####+#### | | ?????????????????????????????????????# # | | ?????????????????????????????????????# # | | ?????????????????????????????????????# # | | ?????????????????????????????????????# # | | ?????????????????????????????????????# ! = # | | ?????????????????????????????????????# *%!%!# | | ?????????????????????????????????????###/#### | | ???????????????????????????????????????#=#??# | | ?????????????????????????????? #??#%#??# | | ??????????????????????????????""" #??# #### | | ??????????????????????????????"""" #### | | ????????????????>?????????????"""" # ^ [ | | ??????????????????????????????"""" # | | ??????????????????????????????""" # """ | | ?????????????????????????????? # """"" | | ??????????????????#########?##+###### """"" | | ??????????????????# =/! !#?# ##### """"" | | ??????????????????+ =/! @### """ | | ??????????????????#a =!! r ####### | | ??????????????????###"Y"##### ####### | | ????????????????????#"""???## ## # | | ???????????????? ########## # #^ ^ | | ??????????????? # + ^ " | | ??????????????? # # T | | ??????????????? # # " | | ????????????????+####+###+## = # # ## | | ???????????????????????????###+######## #? | | ???????????????????????????# %[ ########## #? | | ???????????????????????????# = #????????# #? | | ???????????????????????????# #????????# #? | | ???????????????????????????# """ #????????# #? | | ???????????????????????????# """ #????????# #? | | ???????????????????????????# """ #????????# #? | | ???????????????????????????# #????????# #? | | ???????????????????????????#% ##???????# #? | | ???????????????????????????#################### #? | | ????????????????????? #? | | ????????????????????????????#######"""#########+## | | ??????????????????????????????????#####???# "" | | ??????????????????????????????????????????# "T | | ??????????????????????????????????????????# | | ??????????????????????????????????????????# | | +----------------------------------------------------+ Best States ------------- Heat Dissipation 28 Energy Generation 12 Energy Capacity 265 Matter Stores 300 Matter Capacity 300 Sight Range 16 Terrain Scan Density 10 Armor Coverage 150 Resistance: TH 10 Evasion (%) 63 Recoil Reduction 3 Item Schematics ----------------- None Robot Schematics ------------------ None Fabricated ------------ Nothing Alien Tech Used ----------------- None Achievements -------------- None Challenges ------------ None Game ------ Seed ReflectiveRefineryCompressor Manual? 0 Play Time 00:12:48 Cumulative 43.8 hours Start 2021.08.02 @ 21:10:11 End 2021.08.02 @ 21:21:04 Sessions 1 Manual Loads 0 Difficulty Rogue Special Mode None Game No. 58 Rogue 54 Adventurer 0 Explorer 4 Win Type - Total 0 Types 0/0/0/0/0/0/0/0/0 Lore% 18 Gallery% 31 Achievement% 26 Wizard Run 0 Options --------- ASCII 0 Keyboard 1 Movement Arrows Keybinds 0 Fullscreen 2 Font 24/Crisp Map View 113x50 Tactical HUD 1 Map Filters NONE Filters NONE Steam 1 RUN: 91e0785f-6e12-412f-bc48-e76dbbec6578